bitfinex-derivatives/quotes_BTCF0:USTF0_20241120
["timestamp","ask_amount","ask_price","bid_price","bid_amount"]
[1732065450184,1.04057248,92065.0,92064.0,3.932e-05]
[1732065450571,0.93488607,92065.0,92064.0,3.932e-05]
[1732065450776,1.04057248,92065.0,92064.0,3.932e-05]
[1732065451486,0.52919966,92065.0,92064.0,3.932e-05]
[1732065451671,0.05435274,92065.0,92064.0,3.932e-05]
[1732065451874,0.15623274,92065.0,92064.0,3.932e-05]
[1732065452274,0.30612379,92065.0,92064.0,3.932e-05]
[1732065453467,0.63196379,92065.0,92064.0,3.932e-05]
[1732065453873,0.30612379,92065.0,92064.0,3.932e-05]
[1732065455581,0.15623274,92065.0,92064.0,3.932e-05]
[1732065463987,0.05435274,92065.0,92064.0,3.932e-05]
[1732065464191,0.15623274,92065.0,92064.0,3.932e-05]
[1732065464373,0.30665184,92065.0,92064.0,3.932e-05]
[1732065465277,0.20477184,92065.0,92064.0,3.932e-05]
[1732065465477,0.15623274,92065.0,92064.0,3.932e-05]
[1732065465789,0.30650958,92065.0,92064.0,3.932e-05]
[1732065466179,0.15623274,92065.0,92064.0,3.932e-05]
[1732065467599,0.3066163,92065.0,92064.0,3.932e-05]
[1732065468991,0.2523753,92065.0,92062.0,0.054243]
[1732065469193,0.054242,92063.0,92062.0,0.054243]
[1732065470199,0.054246,92057.0,92055.0,0.087347]
[1732065470489,0.054246,92057.0,92055.0,0.12293245]
[1732065474215,0.3608,92058.0,92057.0,0.054246]
[1732065480390,0.054246,92057.0,92055.0,0.06868545]
[1732065481087,0.054249,92052.0,92051.0,0.0321]
[1732065481488,0.054249,92052.0,92048.0,0.15646154]
[1732065481489,0.05425,92050.0,92048.0,0.15646154]
[1732065481699,0.054247,92056.0,92048.0,0.10221054]
[1732065481893,0.054247,92056.0,92054.0,0.054248]
[1732065482687,0.3608,92058.0,92053.0,0.06685584]
[1732065482892,0.054248,92054.0,92053.0,0.06685584]
[1732065483104,0.054248,92054.0,92048.0,0.0896057]
[1732065483105,0.05425,92049.0,92048.0,0.15646154]
[1732065484596,0.05425,92049.0,92048.0,0.0896057]
[1732065485006,0.05425,92049.0,92048.0,0.15646154]
[1732065486003,0.3608,92050.0,92039.0,0.0051]
[1732065486194,0.054255,92041.0,92039.0,0.0051]
[1732065486394,0.054255,92041.0,92035.0,0.0357951]
[1732065486911,0.054255,92041.0,92035.0,0.05750415]
[1732065487213,0.054255,92041.0,92032.0,0.0102]
[1732065487214,0.05426,92033.0,92032.0,0.0102]
[1732065487392,0.054261,92031.0,92030.0,0.0315]
[1732065488008,0.054261,92031.0,92030.0,0.09835584]
[1732065489200,0.054261,92031.0,92030.0,0.06685584]
[1732065489405,0.054262,92029.0,92028.0,9.251e-05]
[1732065495499,0.0898149,92029.0,92028.0,9.251e-05]
[1732065496214,0.4506149,92029.0,92028.0,9.251e-05]
[1732065496398,0.3963529,92029.0,92024.0,0.0102]
[1732065496604,0.054268,92019.0,92018.0,0.0102]
[1732065496804,0.4624,92019.0,92013.0,0.01183003]
[1732065497137,0.054271,92014.0,92013.0,0.00163003]
[1732065499112,0.05434948,92014.0,92013.0,0.00163003]
[1732065499715,0.36136001,92019.0,92013.0,0.39452587]
[1732065499916,0.3633,92029.0,92028.0,0.054263]
[1732065499917,0.00306001,92029.0,92028.0,0.054263]
[1732065500216,0.054258,92036.0,92028.0,0.12111884]
[1732065500408,0.054258,92036.0,92033.0,0.06685584]
[1732065500602,0.054258,92036.0,92029.0,0.10568759]
[1732065500808,0.054263,92027.0,92026.0,0.0102]
[1732065501005,0.3608,92027.0,92018.0,0.0102]
[1732065501210,0.054268,92019.0,92013.0,0.00163003]
[1732065501405,0.054268,92019.0,92015.0,0.10568759]
[1732065501611,0.054268,92019.0,92016.0,0.05427]
[1732065502315,0.05427,92017.0,92015.0,0.10568759]
[1732065503012,0.05427,92017.0,92013.0,0.00163003]
[1732065503215,0.054271,92014.0,92013.0,0.00163003]
[1732065506818,0.155591,92014.0,92013.0,0.00163003]
[1732065507225,0.86780759,92014.0,91989.0,0.00346]
[1732065507411,0.054285,91990.0,91989.0,0.0025]
[1732065507722,0.054288,91985.0,91979.0,0.054291]
[1732065507919,0.3608,91990.0,91972.0,0.00064]
[1732065507920,0.10132,91989.0,91981.0,0.3608]
[1732065508125,0.054287,91988.0,91981.0,0.3608]
[1732065508422,0.46212,91990.0,91981.0,0.3608]
[1732065508618,0.46212,91990.0,91985.0,0.054288]
[1732065508818,0.46212,91990.0,91981.0,0.3608]
[1732065508819,0.46212,91990.0,91987.0,0.054287]
[1732065509411,0.054286,91989.0,91987.0,0.054287]
[1732065509932,0.36136001,91990.0,91981.0,0.3608]
[1732065510228,0.054281,91998.0,91985.0,0.10568759]
[1732065510424,0.10132,91997.0,91986.0,0.054288]
[1732065510628,0.10132,91997.0,91985.0,0.10568759]
[1732065511412,0.10132,91997.0,91993.0,0.054283]
[1732065511617,0.155601,91997.0,91993.0,0.054283]
[1732065512018,0.10132,91998.0,91985.0,0.10568759]
[1732065512220,0.155597,92004.0,92002.0,0.054278]
[1732065512516,0.155597,92004.0,92003.0,0.0306]
[1732065513022,0.00163148,92009.0,92003.0,0.0306]
[1732065513225,0.155595,92008.0,92004.0,0.085677]
[1732065513423,0.054276,92006.0,92004.0,0.0314]
[1732065514718,0.054277,92004.0,92003.0,0.0306]
[1732065514918,0.415077,92004.0,92003.0,0.0306]
[1732065516122,0.415077,92004.0,91990.0,0.0314]
[1732065516123,0.3608,92004.0,91990.0,0.0314]
[1732065516324,0.054281,91998.0,91994.0,0.054283]
[1732065516627,0.054282,91996.0,91994.0,0.054283]
[1732065516825,0.054284,91993.0,91991.0,0.0309]
[1732065517030,0.155604,91993.0,91991.0,0.0309]
[1732065517332,0.10132,91993.0,91983.0,0.054289]
[1732065517630,0.054287,91987.0,91983.0,0.054289]
[1732065518024,0.054287,91987.0,91983.0,0.03527666]
[1732065518025,0.3608,91987.0,91983.0,0.03527666]
[1732065518327,0.054291,91981.0,91980.0,0.0331]
[1732065518629,0.054291,91981.0,91980.0,0.06792896]
[1732065518813,0.054291,91981.0,91980.0,0.0331]
[1732065520435,0.054291,91981.0,91979.0,0.03514786]
[1732065520633,0.054291,91981.0,91979.0,0.00010386]
[1732065521320,0.155651,91981.0,91979.0,0.00010386]
[1732065522335,0.155651,91981.0,91979.0,7.67e-06]
[1732065532433,0.10568759,91980.0,91979.0,7.67e-06]
[1732065532739,0.46648759,91980.0,91979.0,7.67e-06]
[1732065536936,0.61991127,91980.0,91979.0,7.67e-06]
[1732065537136,0.61991246,91980.0,91979.0,7.67e-06]
[1732065537730,0.054295,91973.0,91972.0,0.01084]
[1732065537934,0.15998259,91973.0,91972.0,0.00064]
[1732065538336,0.31328981,91973.0,91972.0,0.00064]
[1732065538539,0.15998259,91973.0,91972.0,0.00064]
[1732065538744,0.31330231,91973.0,91972.0,0.00064]
[1732065539352,0.15998259,91973.0,91972.0,0.00064]
[1732065540347,0.0543,91965.0,91964.0,0.0102]
[1732065540544,0.0543,91965.0,91959.0,0.00163128]
[1732065540545,0.054303,91960.0,91959.0,0.00163128]
[1732065542242,0.415103,91960.0,91959.0,0.00163128]
[1732065544635,0.741343,91960.0,91959.0,0.00163128]
[1732065544840,0.415103,91960.0,91959.0,0.00163128]
[1732065545033,0.741343,91960.0,91959.0,0.00163128]
[1732065545238,0.415103,91960.0,91959.0,0.00163128]
[1732065547347,0.3608,91960.0,91959.0,0.00163128]
[1732065547645,0.3608,91960.0,91957.0,0.054305]
[1732065547646,0.054304,91959.0,91957.0,0.054305]
[1732065547851,0.15999159,91959.0,91958.0,0.0323]
[1732065548646,0.26115159,91959.0,91958.0,0.0323]
[1732065548849,0.10116,91959.0,91958.0,0.0323]
[1732065549244,0.10066424,91959.0,91958.0,0.0323]
[1732065550341,0.3608,91968.0,91958.0,0.0323]
[1732065550654,0.10116,91967.0,91966.0,0.054299]
[1732065552037,0.415098,91968.0,91966.0,0.054299]
[1732065552654,0.3608,91968.0,91966.0,0.054299]
[1732065553959,0.3608,91968.0,91966.0,0.08989639]
[1732065559050,0.3608,91968.0,91966.0,0.00753861]
[1732065559252,0.3608,91968.0,91961.0,0.0311]
[1732065559651,0.3608,91968.0,91966.0,0.054299]
[1732065562655,0.3608,91968.0,91961.0,0.0311]
[1732065562847,0.3608,91968.0,91960.0,0.0051]
[1732065562848,0.15998959,91962.0,91960.0,0.0051]
[1732065563052,0.15998959,91962.0,91958.0,0.0323]
[1732065563053,0.054303,91960.0,91958.0,0.0323]
[1732065563253,0.3608,91959.0,91958.0,0.0323]
[1732065563663,0.3608,91959.0,91954.0,0.0051]
[1732065563857,0.15999359,91955.0,91954.0,0.0051]
[1732065564162,0.15999359,91955.0,91944.0,0.0317]
[1732065564163,0.054307,91953.0,91948.0,0.08751]
[1732065564364,0.3608,91950.0,91948.0,0.08751]
[1732065565173,0.10568759,91955.0,91944.0,0.0317]
[1732065565359,0.3608,91950.0,91944.0,0.0317]
[1732065565558,0.054311,91947.0,91944.0,0.086012]
[1732065566057,0.054311,91947.0,91945.0,0.054311]
[1732065566666,0.3608,91950.0,91946.0,0.0301]
[1732065566858,0.415109,91950.0,91948.0,0.05431]
[1732065567054,0.10092,91951.0,91948.0,0.05431]
[1732065567285,0.10092,91954.0,91946.0,0.0301]
[1732065567465,0.10092,91954.0,91953.0,0.054307]
[1732065568670,0.46172,91959.0,91946.0,0.0301]
[1732065568860,0.46172,91959.0,91957.0,0.054304]
[1732065569064,0.3608,91959.0,91957.0,0.054304]
[1732065572066,0.3608,91959.0,91952.0,0.10568759]
[1732065572067,0.10092,91965.0,91958.0,0.0317]
[1732065572269,0.10092,91965.0,91964.0,0.054301]
[1732065572863,0.3608,91967.0,91966.0,0.054299]
[1732065577379,0.10092,91975.0,91963.0,0.3608]
[1732065577677,0.10092,91975.0,91972.0,0.054296]
[1732065578266,0.10092,91975.0,91964.0,0.0316]
[1732065578462,0.10092,91975.0,91973.0,0.054295]
[1732065580465,0.054301,91964.0,91963.0,0.0051]
[1732065580765,0.054301,91964.0,91954.0,0.054306]
[1732065580766,0.054303,91961.0,91956.0,0.0051]
[1732065581066,0.054303,91961.0,91953.0,0.3608]
[1732065581376,0.054298,91968.0,91967.0,0.054299]
[1732065581564,0.054298,91968.0,91966.0,0.054299]
[1732065582368,0.10568759,91971.0,91955.0,0.25976853]
[1732065582566,0.054311,91947.0,91945.0,0.26027701]
[1732065582774,0.054312,91945.0,91942.0,0.0318]
[1732065583083,0.10092,91947.0,91945.0,0.054311]
[1732065583267,0.054309,91950.0,91945.0,0.054311]
[1732065583576,0.0025,91958.0,91956.0,0.054305]
[1732065583775,0.054302,91963.0,91948.0,0.10568759]
[1732065584080,0.054302,91963.0,91955.0,0.054306]
[1732065584379,0.10092,91965.0,91955.0,0.054306]
[1732065584581,0.054302,91962.0,91955.0,0.054306]
[1732065584978,0.10092,91965.0,91955.0,0.054306]
[1732065585279,0.10092,91965.0,91943.0,0.3608]
[1732065585481,0.46660326,91967.0,91943.0,0.3608]
[1732065585665,0.46660326,91967.0,91956.0,0.054299]
[1732065585666,0.054296,91962.0,91956.0,0.054299]
[1732065585870,0.054296,91962.0,91957.0,0.0632]
[1732065586270,0.054296,91962.0,91958.0,0.0333]
[1732065586466,0.054296,91961.0,91958.0,0.0333]
[1732065586691,0.10092,91965.0,91958.0,0.0333]
[1732065586879,0.10092,91965.0,91961.0,0.054296]
[1732065587069,0.054294,91966.0,91961.0,0.054296]
[1732065587271,0.36091567,91967.0,91964.0,0.054294]
[1732065587471,0.36091567,91967.0,91965.0,0.054294]
[1732065588681,0.00011567,91967.0,91965.0,0.054294]
[1732065592581,0.00011567,91967.0,91965.0,0.380494]
[1732065593080,0.00011567,91967.0,91966.0,0.3262]
[1732065596279,0.00011567,91967.0,91966.0,0.42684]
[1732065597391,0.00011567,91967.0,91966.0,0.10064]
[1732065598685,0.00011567,91967.0,91965.0,0.054294]
[1732065600478,0.00011567,91967.0,91963.0,0.02172536]
[1732065600679,0.054294,91966.0,91963.0,0.02172536]
[1732065601283,0.054294,91965.0,91963.0,0.02172536]
[1732065601783,0.054294,91965.0,91963.0,0.07602036]
[1732065603593,0.00011567,91967.0,91964.0,0.054294]
[1732065604381,0.00011567,91967.0,91965.0,0.054294]
[1732065605290,0.0051,91973.0,91972.0,0.05429]
[1732065605483,0.0076,91980.0,91979.0,0.054286]
[1732065605687,0.36136001,91985.0,91981.0,0.054284]
[1732065605878,0.36136001,91985.0,91973.0,0.0312]
[1732065606189,0.3608,91985.0,91974.0,0.0307]
[1732065606494,0.00010958,91976.0,91975.0,0.054288]
[1732065607781,0.00010958,91976.0,91974.0,0.0307]
[1732065607985,0.05439758,91976.0,91974.0,0.0307]
[1732065608490,0.05439758,91976.0,91975.0,0.0304]
[1732065611496,0.00010958,91976.0,91975.0,0.084689]
[1732065611686,0.00010958,91976.0,91975.0,0.0304]
[1732065622699,0.06708047,91976.0,91975.0,0.0304]
[1732065624805,0.00010958,91976.0,91975.0,0.0204]
[1732065628419,0.00010958,91976.0,91975.0,0.44817089]
[1732065628600,0.0076,91992.0,91986.0,0.054282]
[1732065628801,0.0076,91992.0,91987.0,0.054281]
[1732065628802,0.00056001,91992.0,91987.0,0.054281]
[1732065629005,0.054278,91993.0,91988.0,0.03]
[1732065629504,7.799e-05,91992.0,91989.0,0.0331]
[1732065629904,0.05435699,91992.0,91989.0,0.0331]
[1732065630398,0.05428,91991.0,91989.0,0.0331]
[1732065632511,7.799e-05,91992.0,91979.0,0.054286]
[1732065632702,0.054285,91981.0,91979.0,0.054286]
[1732065633014,0.054285,91981.0,91979.0,0.09804364]
[1732065636216,0.054282,91987.0,91979.0,0.09804364]
[1732065636711,0.0051,91989.0,91979.0,0.09804364]
[1732065636912,0.054283,91986.0,91980.0,0.01697135]
[1732065637113,0.054283,91986.0,91981.0,0.01697135]
[1732065637410,0.054283,91986.0,91979.0,0.09804364]
[1732065639117,0.054283,91986.0,91980.0,0.02172222]
[1732065640414,0.054283,91986.0,91980.0,0.07600722]
[1732065640802,0.0051,91989.0,91985.0,0.054283]
[1732065641006,0.05435699,91992.0,91980.0,0.02172222]
[1732065641007,7.799e-05,91992.0,91991.0,0.054279]
[1732065644913,0.0051,92001.0,91991.0,0.380399]
[1732065645109,0.0016305,92014.0,92006.0,0.05427]
[1732065645110,0.0051,92007.0,92006.0,0.05427]
[1732065645317,0.0016305,92014.0,92010.0,0.054268]
[1732065645521,0.0016305,92014.0,92011.0,0.3608]
[1732065645717,0.0016305,92014.0,92012.0,0.054267]
[1732065645923,0.00011596,92013.0,92012.0,0.054267]
[1732065648320,0.00011596,92013.0,92012.0,0.084767]
[1732065648635,0.00011596,92013.0,92010.0,0.04376788]
[1732065648923,0.054267,92011.0,92009.0,0.00013721]
[1732065649127,0.00011596,92013.0,92009.0,0.00013721]
[1732065649419,0.00011596,92013.0,92011.0,0.054267]
[1732065651222,0.00011596,92013.0,92012.0,0.3608]
[1732065651623,0.0051,92024.0,92023.0,0.05426]
[1732065651826,0.3608,92034.0,92028.0,0.054257]
[1732065652026,0.3608,92034.0,92022.0,0.05936]
[1732065652323,0.3608,92033.0,92022.0,0.0051]
[1732065652625,0.00011551,92032.0,92022.0,0.0051]
[1732065652824,0.05426,92025.0,92022.0,0.0051]
[1732065653034,0.00011551,92032.0,92014.0,0.0051]
[1732065653035,0.054261,92022.0,92014.0,0.0051]
[1732065653219,0.054261,92022.0,92017.0,0.054264]
[1732065653416,0.00521551,92032.0,92019.0,0.054263]
[1732065653417,0.054258,92028.0,92019.0,0.054263]
[1732065653721,0.054258,92028.0,92020.0,0.054262]
[1732065654327,0.054258,92028.0,92021.0,0.054261]
[1732065654913,0.00011551,92032.0,92021.0,0.054261]
[1732065655114,0.054258,92027.0,92021.0,0.054261]
[1732065655917,0.054258,92027.0,92022.0,0.054261]
[1732065657823,0.054258,92027.0,92019.0,0.0315]
[1732065658032,0.054258,92027.0,92024.0,0.054259]
[1732065658810,0.054259,92026.0,92024.0,0.054259]
[1732065659214,0.054259,92026.0,92019.0,0.07513443]
[1732065659815,0.054259,92026.0,92024.0,0.054259]
[1732065661317,0.05437051,92032.0,92025.0,0.054259]
[1732065661522,0.05437051,92032.0,92026.0,0.054258]
[1732065661719,0.05437051,92032.0,92030.0,0.10580729]
[1732065661720,0.00011551,92032.0,92030.0,0.10580729]
[1732065661923,0.00011551,92032.0,92030.0,0.16006329]
[1732065662723,0.00011551,92032.0,92030.0,0.054256]
[1732065662928,0.00011551,92032.0,92031.0,0.3608]
[1732065663126,0.00011551,92032.0,92031.0,0.393]
[1732065664724,0.00011551,92032.0,92031.0,0.3608]
[1732065666329,0.00011551,92032.0,92030.0,0.04486235]
[1732065666521,0.054256,92031.0,92028.0,0.054257]
[1732065667335,0.054256,92031.0,92023.0,0.10580729]
[1732065667525,0.054256,92031.0,92029.0,0.054257]
[1732065668534,0.00011551,92032.0,92023.0,0.04299904]
[1732065668535,0.05426,92025.0,92023.0,0.04299904]
[1732065668724,0.05426,92025.0,92023.0,0.05426]
[1732065677129,0.06689688,92029.0,92022.0,0.04369485]
[1732065677339,0.05426,92023.0,92021.0,0.3608]
[1732065678441,0.054262,92020.0,92017.0,0.0051]
[1732065678741,0.054262,92020.0,92014.0,0.0322]
[1732065679933,0.3608,92022.0,92013.0,0.04365693]
[1732065679934,0.054266,92014.0,92013.0,0.04365693]
[1732065680138,0.054266,92014.0,92012.0,0.00673001]
[1732065680139,0.054266,92014.0,92012.0,0.00163001]
[1732065685649,0.054264,92018.0,92012.0,0.36243001]
[1732065685845,0.054264,92018.0,92016.0,0.10573593]
[1732065686747,0.054264,92018.0,92017.0,0.054264]
[1732065690754,0.054266,92013.0,92012.0,0.00163001]
[1732065710262,0.054266,92013.0,92007.0,0.0051]
[1732065710263,0.054268,92010.0,92007.0,0.0051]
[1732065710471,0.054272,92004.0,92003.0,0.0051]
[1732065710764,0.3608,92008.0,91997.0,0.0051]
[1732065710765,0.054275,91999.0,91997.0,0.0051]
[1732065710951,0.054275,91999.0,91997.0,0.0631]
[1732065711456,0.054275,91999.0,91997.0,0.117376]
[1732065711844,0.3608,92008.0,91997.0,0.0631]
[1732065712157,0.054271,92005.0,92003.0,0.054272]
[1732065712856,0.054271,92005.0,91996.0,0.0102]
[1732065712857,0.054276,91998.0,91996.0,0.0102]
[1732065713061,0.054278,91993.0,91991.0,0.0407]
[1732065713355,0.054278,91993.0,91992.0,0.42771552]
[1732065714548,0.054278,91993.0,91992.0,0.47096013]
[1732065714765,0.054275,91999.0,91994.0,0.054277]
[1732065714949,0.054275,91999.0,91998.0,0.06691552]
[1732065715352,0.054276,91997.0,91996.0,0.0309]
[1732065721162,0.054278,91993.0,91992.0,0.3608]
[1732065723965,0.054273,92002.0,91999.0,0.054274]
[1732065724163,0.054268,92011.0,92008.0,0.054269]
[1732065724371,0.054268,92011.0,92010.0,0.06691552]
[1732065726355,0.12118352,92011.0,92009.0,0.032]
[1732065726863,0.054268,92011.0,92009.0,0.032]
[1732065727070,0.054268,92011.0,92009.0,0.086268]
[1732065728366,0.054268,92011.0,92009.0,0.032]
[1732065729266,0.054268,92011.0,92009.0,0.086269]
[1732065730456,0.054265,92016.0,92015.0,0.054265]
[1732065731268,0.054268,92010.0,92008.0,0.00566]
[1732065731570,0.054273,92002.0,92001.0,0.0051]
[1732065731762,0.3608,92007.0,91993.0,0.0369]
[1732065731964,0.054277,91994.0,91993.0,0.0369]
[1732065732172,0.054277,91994.0,91993.0,0.0318]
[1732065734176,0.054279,91991.0,91990.0,0.03323717]
[1732065734360,0.054279,91991.0,91990.0,0.00013717]
[1732065735860,0.380399,91991.0,91990.0,0.00013717]
[1732065739170,0.153919,91991.0,91990.0,0.00013717]
[1732065744578,0.15405632,91991.0,91990.0,0.00013717]
[1732065747774,0.48017632,91991.0,91990.0,0.00013717]
[1732065748675,0.48017632,91991.0,91990.0,5.82e-06]
[1732065748868,0.054283,91985.0,91984.0,0.0051]
[1732065749077,0.054286,91980.0,91979.0,0.0051]
[1732065749371,0.05429,91972.0,91969.0,0.0051]
[1732065749571,0.05429,91972.0,91965.0,0.0318]
[1732065758778,0.38049,91972.0,91965.0,0.0318]
[1732065760283,0.05429,91972.0,91965.0,0.0318]
[1732065760580,0.054296,91963.0,91962.0,0.0051]
[1732065760887,0.054298,91959.0,91958.0,0.031]
[1732065764676,0.054299,91957.0,91956.0,0.00012962]
[1732065766677,0.12131046,91957.0,91956.0,0.00012962]
[1732065771885,0.1214129,91957.0,91956.0,0.00012962]
[1732065772187,0.1214129,91957.0,91950.0,0.0331]
[1732065772188,0.12131446,91951.0,91950.0,0.0331]
[1732065772391,0.28780592,91951.0,91950.0,0.0331]
[1732065772578,0.22079446,91951.0,91950.0,0.0331]
[1732065774688,0.25969978,91951.0,91950.0,0.0331]
[1732065775691,0.16021978,91951.0,91950.0,0.0331]
[1732065775886,0.25973978,91951.0,91950.0,0.0331]
[1732065781788,0.62053978,91951.0,91950.0,0.0331]
[1732065784704,0.054307,91944.0,91943.0,0.0308]
[1732065789409,0.09788169,91944.0,91943.0,0.0308]
[1732065792605,0.09788169,91944.0,91934.0,0.0051]
[1732065792815,0.16022878,91935.0,91934.0,0.0051]
[1732065793105,0.16022878,91935.0,91925.0,0.1019]
[1732065793106,0.054318,91926.0,91925.0,0.1019]
[1732065793305,0.054318,91926.0,91925.0,0.0968]
[1732065793615,0.10591678,91928.0,91921.0,0.00163196]
[1732065793820,0.09952,91927.0,91924.0,0.054319]
[1732065794113,0.054319,91925.0,91922.0,0.0308]
[1732065794407,0.054319,91924.0,91922.0,0.0308]
[1732065794609,0.054321,91921.0,91920.0,0.00013434]
[1732065796309,0.153841,91921.0,91920.0,0.00013434]
[1732065796512,0.054321,91921.0,91920.0,0.00013434]
[1732065796706,0.153841,91921.0,91920.0,0.00013434]
[1732065796909,0.19826431,91921.0,91920.0,0.00013434]
[1732065799508,0.19826431,91921.0,91897.0,0.35860955]
[1732065799714,0.054331,91904.0,91897.0,0.35860955]
[1732065799924,0.09932,91904.0,91897.0,0.35860955]
[1732065800128,0.054332,91902.0,91897.0,0.35860955]
[1732065800424,0.09932,91904.0,91897.0,0.35860955]
[1732065800425,0.054334,91899.0,91897.0,0.35860955]
[1732065800627,0.10591678,91900.0,91893.0,0.04305258]
[1732065800927,0.054339,91890.0,91889.0,0.3608]
[1732065801514,0.05434,91888.0,91880.0,0.054344]
[1732065801714,0.10591678,91886.0,91880.0,0.054344]
[1732065802126,0.16025778,91886.0,91878.0,0.00010376]
[1732065802823,0.09932,91886.0,91882.0,0.415144]
[1732065803124,0.04465349,91891.0,91883.0,0.054343]
[1732065803427,0.10591678,91886.0,91882.0,0.3608]
[1732065803621,0.09932,91886.0,91882.0,0.3608]
[1732065804618,0.09932,91886.0,91884.0,0.054342]
[1732065805725,0.054338,91893.0,91886.0,0.054341]
[1732065805927,0.04352007,91894.0,91890.0,0.415139]
[1732065806223,0.09932,91892.0,91890.0,0.415139]
[1732065807012,0.09932,91892.0,91890.0,0.3608]
[1732065807717,0.153658,91892.0,91890.0,0.3608]
[1732065809015,0.054338,91892.0,91890.0,0.3608]
[1732065809219,0.09932,91891.0,91890.0,0.3608]
[1732065812418,0.09932,91893.0,91891.0,0.054338]
[1732065812637,0.054333,91900.0,91895.0,0.054336]
[1732065812929,0.09932,91899.0,91896.0,0.0945]
[1732065813124,0.054335,91898.0,91896.0,0.0945]
[1732065813321,0.054335,91898.0,91896.0,0.0631]
[1732065814428,0.054338,91891.0,91890.0,0.3608]
[1732065814627,0.16025478,91891.0,91890.0,0.3608]
[1732065817430,0.054338,91891.0,91890.0,0.3608]
[1732065820025,0.05434,91888.0,91887.0,0.0314]
[1732065820226,0.054345,91879.0,91878.0,0.00010376]
[1732065820428,0.415145,91879.0,91878.0,0.00010376]
[1732065821138,0.46005418,91879.0,91878.0,0.00010376]
[1732065821633,0.415145,91879.0,91878.0,0.00010376]
[1732065824435,0.514505,91879.0,91878.0,0.00010376]
[1732065830047,0.415145,91879.0,91878.0,0.00010376]
[1732065830240,0.09912,91879.0,91878.0,0.00010376]
[1732065830440,0.09912,91879.0,91878.0,0.09330376]
[1732065830641,0.09912,91879.0,91878.0,0.14764876]
[1732065830841,0.0051,91886.0,91885.0,0.054342]
[1732065831041,0.09912,91886.0,91885.0,0.054342]
[1732065831438,0.10591678,91887.0,91885.0,0.054342]
[1732065831641,0.10591678,91887.0,91878.0,0.09330376]
[1732065831843,0.10591678,91881.0,91879.0,0.054345]
[1732065832439,0.054345,91879.0,91878.0,0.00010376]
[1732065834447,0.153465,91879.0,91878.0,0.00010376]
[1732065834842,0.054353,91867.0,91866.0,0.00673294]
[1732065835038,0.25938978,91867.0,91866.0,0.00163294]
[1732065835239,0.16026978,91867.0,91866.0,0.00163294]
[1732065837448,0.25938978,91867.0,91866.0,0.00163294]
[1732065838047,0.25938978,91867.0,91852.0,0.0051]
[1732065838048,0.054361,91853.0,91852.0,0.0051]
[1732065838244,0.054361,91853.0,91847.0,9.239e-05]
[1732065838245,0.054364,91848.0,91847.0,9.239e-05]
[1732065838450,0.415164,91848.0,91847.0,9.239e-05]
[1732065839254,0.514284,91848.0,91847.0,9.239e-05]
[1732065842862,0.415164,91848.0,91847.0,9.239e-05]
[1732065843065,0.45996,91848.0,91847.0,0.05445639]
[1732065843244,0.45996,91848.0,91847.0,9.239e-05]
[1732065844260,0.3608,91848.0,91847.0,9.239e-05]
[1732065844456,0.3109,91848.0,91847.0,0.03229239]
[1732065844754,0.054361,91854.0,91847.0,0.03229239]
[1732065845655,0.16027778,91853.0,91847.0,0.03229239]
[1732065845861,0.054362,91852.0,91847.0,0.03229239]
[1732065846055,0.10591678,91853.0,91847.0,0.03229239]
[1732065846261,0.054362,91851.0,91847.0,0.03229239]
[1732065846647,0.10591678,91853.0,91847.0,0.03229239]
[1732065846964,0.10591678,91853.0,91850.0,0.945637]
[1732065847154,0.10591678,91853.0,91851.0,0.032]
[1732065847852,0.054361,91852.0,91851.0,0.032]
[1732065848053,0.415161,91852.0,91851.0,0.032]
[1732065850251,0.415161,91852.0,91850.0,0.945637]
[1732065850561,0.415161,91852.0,91850.0,0.91344795]
[1732065852349,0.47044427,91852.0,91850.0,0.91344795]
[1732065857861,0.10591678,91851.0,91850.0,0.63423065]
[1732065858060,0.47104428,91852.0,91850.0,0.63423065]
[1732065858262,0.47044427,91852.0,91850.0,0.63423065]
[1732065858969,0.02175836,91851.0,91850.0,0.63423065]
[1732065860071,0.12071836,91851.0,91850.0,0.63423065]
[1732065861064,0.02175836,91851.0,91850.0,0.63423065]
[1732065861272,0.12071836,91851.0,91850.0,0.63423065]
[1732065861773,0.12071836,91851.0,91850.0,0.35501335]
[1732065862573,0.28620741,91851.0,91850.0,0.35501335]
[1732065863377,0.41232704,91851.0,91850.0,0.35501335]
[1732065863562,0.28620741,91851.0,91850.0,0.35501335]
[1732065864061,0.47900499,91851.0,91850.0,0.02863708]
[1732065865074,0.28620741,91851.0,91850.0,0.02863708]
[1732065865273,0.4695705,91851.0,91850.0,0.02863708]
[1732065865960,0.28620741,91851.0,91850.0,0.02863708]
[1732065866163,0.28620741,91851.0,91847.0,9.239e-05]
[1732065866164,0.39212419,91851.0,91847.0,9.239e-05]
[1732065866363,0.39212419,91851.0,91836.0,0.0303]
[1732065866364,0.16028678,91837.0,91836.0,0.0303]
[1732065866584,0.62004678,91837.0,91836.0,0.0303]
[1732065867472,0.77807068,91837.0,91836.0,0.0303]
[1732065868170,0.51413,91837.0,91836.0,0.0303]
[1732065869472,0.3608,91837.0,91836.0,0.0303]
[1732065869665,0.054365,91838.0,91836.0,0.0303]
[1732065876675,0.20487678,91840.0,91822.0,0.054374]
[1732065876676,0.054374,91823.0,91822.0,0.054374]
[1732065876873,0.05947,91829.0,91828.0,0.0307]
[1732065877075,0.05437,91829.0,91828.0,0.0307]
[1732065877275,0.15343579,91829.0,91828.0,0.0307]
[1732065877777,0.20694967,91829.0,91828.0,0.0307]
[1732065877970,0.31286645,91829.0,91828.0,0.0307]
[1732065879780,0.05361967,91829.0,91828.0,0.08507]
[1732065879981,0.05361967,91829.0,91828.0,0.0307]
[1732065880586,0.00010579,91829.0,91828.0,0.0307]
[1732065880788,0.05437,91830.0,91829.0,0.05437]
[1732065880979,0.09896,91835.0,91831.0,0.054368]
[1732065881287,0.054367,91834.0,91832.0,0.054368]
[1732065881579,0.0314,91861.0,91832.0,0.054368]
[1732065881580,0.20487678,91851.0,91832.0,0.46671678]
[1732065881781,9.614e-05,91848.0,91843.0,0.3608]